[Event "Live Chess"]
[Site "Chess.com"]
[Date "2020.12.01"]
[Round "1"]
[White "GGuseinov"]
[Black "MatnMatt20"]
[Result "1-0"]
[WhiteElo "2600"]
[BlackElo "1718"]
[TimeControl "2100+2"]
[EndTime "18:44:29 PST"]
[Termination "GGuseinov won by resignation"]

1. e4 {[%clk 0:35:00.2]} 1... g6 {[%clk 0:34:59.7]} 2. d4 {[%clk 0:34:56.4]}
2... Bg7 {[%clk 0:35:00.7]} 3. Nc3 {[%clk 0:34:54.3]} 3... e6 {[%clk 0:35:01.2]}
4. Be3 {[%clk 0:34:51.2]} 4... Ne7 {[%clk 0:34:57]} 5. Qd2 {[%clk 0:34:50.3]}
5... h6 {[%clk 0:34:56.5]} 6. O-O-O {[%clk 0:34:50.5]} 6... a6 {[%clk
0:34:56.8]} 7. h4 {[%clk 0:34:48.6]} 7... b5 {[%clk 0:34:57.2]} 8. h5 {[%clk
0:34:49.5]} 8... g5 {[%clk 0:34:57.5]} 9. f4 {[%clk 0:34:46.7]} 9... gxf4 {[%clk
0:34:58]} 10. Bxf4 {[%clk 0:34:47.6]} 10... Bb7 {[%clk 0:34:55.6]} 11. Qe3
{[%clk 0:34:28.3]} 11... d6 {[%clk 0:34:51.2]} 12. Nf3 {[%clk 0:34:13.6]} 12...
Nd7 {[%clk 0:34:52]} 13. Bd3 {[%clk 0:33:59.9]} 13... Nf6 {[%clk 0:34:43.4]} 14.
g4 {[%clk 0:33:52]} 14... Nxg4 {[%clk 0:31:13.7]} 15. Qg1 {[%clk 0:33:48.8]}
15... f5 {[%clk 0:31:08.9]} 16. Nh2 {[%clk 0:33:32.5]} 16... Rg8 {[%clk
0:30:59.7]} 17. Nxg4 {[%clk 0:32:51.5]} 17... fxg4 {[%clk 0:30:54.3]} 18. Rh4
{[%clk 0:32:25.7]} 18... Kd7 {[%clk 0:29:38.5]} 19. Rxg4 {[%clk 0:31:52.9]}
19... Bh8 {[%clk 0:29:34.4]} 20. Bxh6 {[%clk 0:31:21.5]} 20... Rxg4 {[%clk
0:29:21.6]} 21. Qxg4 {[%clk 0:31:20.1]} 21... Bxd4 {[%clk 0:29:22.4]} 22. Bxb5+
{[%clk 0:31:02.2]} 22... c6 {[%clk 0:29:16.5]} 23. Bc4 {[%clk 0:30:48.8]} 23...
d5 {[%clk 0:29:00.1]} 24. exd5 {[%clk 0:30:41.1]} 24... cxd5 {[%clk 0:28:56.3]}
25. Qxd4 {[%clk 0:30:40.9]} 25... Nf5 {[%clk 0:28:54.2]} 26. Qf4 {[%clk
0:30:38.1]} 26... Qc8 {[%clk 0:28:37.5]} 27. Nxd5 {[%clk 0:30:23.6]} 27... Qxc4
{[%clk 0:28:28.1]} 28. Nb6+ {[%clk 0:30:20.3]} 1-0

[Event "Live Chess"]
[Site "Chess.com"]
[Date "2020.12.01"]
[Round "1"]
[White "ahyanzaman"]
[Black "ecwinslow"]
[Result "0-1"]
[WhiteElo "1699"]
[BlackElo "2278"]
[TimeControl "2100+2"]
[EndTime "19:43:54 PST"]
[Termination "ecwinslow won by checkmate"]

1. c4 {[%clk 0:34:58.6]} 1... g6 {[%clk 0:34:42.3]} 2. Nc3 {[%clk 0:34:58]} 2...
Bg7 {[%clk 0:33:56.4]} 3. Nf3 {[%clk 0:34:38]} 3... d6 {[%clk 0:33:19.6]} 4. d4
{[%clk 0:34:29.6]} 4... Nf6 {[%clk 0:33:18.9]} 5. g3 {[%clk 0:34:23.8]} 5... O-O
{[%clk 0:33:18.5]} 6. Bg2 {[%clk 0:34:20.1]} 6... Nbd7 {[%clk 0:33:19]} 7. e3
{[%clk 0:34:06.8]} 7... e5 {[%clk 0:33:17.4]} 8. dxe5 {[%clk 0:33:31.3]} 8...
dxe5 {[%clk 0:33:17.8]} 9. O-O {[%clk 0:33:10.2]} 9... c6 {[%clk 0:33:13.2]} 10.
b3 {[%clk 0:32:18.8]} 10... Re8 {[%clk 0:33:03.1]} 11. Bb2 {[%clk 0:31:21.4]}
11... Qc7 {[%clk 0:32:50.3]} 12. Qc2 {[%clk 0:30:53.1]} 12... Nc5 {[%clk
0:32:04.7]} 13. b4 {[%clk 0:29:51.7]} 13... Bf5 {[%clk 0:31:26.8]} 14. e4 {[%clk
0:28:26.3]} 14... Ncxe4 {[%clk 0:31:05.3]} 15. Nxe4 {[%clk 0:28:24.3]} 15...
Bxe4 {[%clk 0:30:50]} 16. Qe2 {[%clk 0:28:11.9]} 16... Rad8 {[%clk 0:30:30.8]}
17. Rad1 {[%clk 0:27:54.3]} 17... Bxf3 {[%clk 0:29:33.7]} 18. Qxf3 {[%clk
0:27:11.4]} 18... e4 {[%clk 0:29:31.9]} 19. Qb3 {[%clk 0:26:22.4]} 19... e3
{[%clk 0:24:08.4]} 20. fxe3 {[%clk 0:25:30.9]} 20... Ng4 {[%clk 0:23:40.8]} 21.
Bxg7 {[%clk 0:24:02]} 21... Kxg7 {[%clk 0:23:36]} 22. Rxd8 {[%clk 0:23:23.8]}
22... Qxd8 {[%clk 0:23:16.2]} 23. Qc3+ {[%clk 0:22:58.1]} 23... f6 {[%clk
0:22:46.9]} 24. e4 {[%clk 0:22:02.8]} 24... Qb6+ {[%clk 0:21:10.1]} 25. c5
{[%clk 0:22:01.6]} 25... Qa6 {[%clk 0:21:04.6]} 26. Qf3 {[%clk 0:20:36.7]} 26...
f5 {[%clk 0:20:06.7]} 27. exf5 {[%clk 0:19:36.7]} 27... Qc4 {[%clk 0:20:02.1]}
28. fxg6 {[%clk 0:16:55]} 28... hxg6 {[%clk 0:18:45.4]} 29. h3 {[%clk
0:14:29.6]} 29... Qd4+ {[%clk 0:18:17.3]} 30. Kh1 {[%clk 0:14:25.7]} 30... Nf6
{[%clk 0:18:16.4]} 31. Qf4 {[%clk 0:12:45.7]} 31... Qxf4 {[%clk 0:17:09.8]} 32.
Rxf4 {[%clk 0:12:47.6]} 32... Re2 {[%clk 0:12:57.9]} 33. a3 {[%clk 0:12:40.6]}
33... Nd7 {[%clk 0:08:01.1]} 34. Re4 {[%clk 0:12:07.8]} 34... Rd2 {[%clk
0:06:46.3]} 35. a4 {[%clk 0:10:34.5]} 35... Kf6 {[%clk 0:06:09.2]} 36. Rf4+
{[%clk 0:09:39.6]} 36... Ke7 {[%clk 0:04:29]} 37. b5 {[%clk 0:07:01.6]} 37...
cxb5 {[%clk 0:03:48.9]} 38. c6 {[%clk 0:04:42.3]} 38... bxc6 {[%clk 0:03:45.7]}
39. Bxc6 {[%clk 0:04:42.8]} 39... bxa4 {[%clk 0:03:39.8]} 40. Bxa4 {[%clk
0:04:41.6]} 40... Ne5 {[%clk 0:02:58.9]} 41. Kg1 {[%clk 0:03:48.8]} 41... g5
{[%clk 0:02:44.5]} 42. Re4 {[%clk 0:03:09.7]} 42... Kd6 {[%clk 0:02:37.1]} 43.
Re3 {[%clk 0:03:01.8]} 43... a5 {[%clk 0:02:29.5]} 44. Be8 {[%clk 0:02:20.2]}
44... Ra2 {[%clk 0:02:21.9]} 45. Kf1 {[%clk 0:01:27]} 45... a4 {[%clk
0:02:19.9]} 46. Re4 {[%clk 0:01:00.8]} 46... a3 {[%clk 0:02:12.2]} 47. Rd4+
{[%clk 0:00:52.9]} 47... Kc5 {[%clk 0:01:57.4]} 48. Rd1 {[%clk 0:00:49.9]} 48...
Rb2 {[%clk 0:01:46.1]} 49. Ba4 {[%clk 0:00:47.1]} 49... a2 {[%clk 0:01:38.5]}
50. Rc1+ {[%clk 0:00:41]} 50... Nc4 {[%clk 0:01:30.5]} 51. Be8 {[%clk
0:00:40.7]} 51... Rb1 {[%clk 0:01:22.5]} 52. Rxb1 {[%clk 0:00:36]} 52... axb1=Q+
{[%clk 0:01:20.5]} 53. Kf2 {[%clk 0:00:37.4]} 53... Kd4 {[%clk 0:01:18.2]} 54.
Kf3 {[%clk 0:00:38.2]} 54... Qd1+ {[%clk 0:01:16.8]} 55. Kf2 {[%clk 0:00:36.3]}
55... Ne5 {[%clk 0:01:14.7]} 56. Bb5 {[%clk 0:00:35]} 56... Qf3+ {[%clk
0:01:10.6]} 57. Ke1 {[%clk 0:00:31.4]} 57... Ke3 {[%clk 0:01:10.4]} 58. h4
{[%clk 0:00:25.8]} 58... Qf2+ {[%clk 0:01:08.9]} 59. Kd1 {[%clk 0:00:25.1]}
59... Qd2# {[%clk 0:01:10.4]} 0-1

[Event "Live Chess"]
[Site "Chess.com"]
[Date "2020.12.01"]
[Round "1"]
[White "microbear"]
[Black "starserika18"]
[Result "1-0"]
[WhiteElo "2202"]
[BlackElo "1693"]
[TimeControl "2100+2"]
[EndTime "19:12:57 PST"]
[Termination "microbear won by resignation"]

1. e4 {[%clk 0:35:00]} 1... c5 {[%clk 0:34:53.2]} 2. Nf3 {[%clk 0:34:55.8]} 2...
Nc6 {[%clk 0:34:51.1]} 3. d4 {[%clk 0:34:52.9]} 3... cxd4 {[%clk 0:34:49.3]} 4.
Nxd4 {[%clk 0:34:54]} 4... g6 {[%clk 0:34:49.9]} 5. Nc3 {[%clk 0:34:30]} 5...
Bg7 {[%clk 0:34:24.3]} 6. Be3 {[%clk 0:34:22.2]} 6... a6 {[%clk 0:34:06.3]} 7.
h3 {[%clk 0:33:48.1]} 7... e6 {[%clk 0:33:47.2]} 8. g4 {[%clk 0:33:12.8]} 8...
Nge7 {[%clk 0:33:38.2]} 9. Bg2 {[%clk 0:33:03.3]} 9... Qa5 {[%clk 0:32:48.8]}
10. O-O {[%clk 0:32:22.6]} 10... O-O {[%clk 0:32:39.7]} 11. Nce2 {[%clk
0:31:08.6]} 11... f5 {[%clk 0:32:26.1]} 12. f4 {[%clk 0:28:41.9]} 12... Nxd4
{[%clk 0:29:49.2]} 13. Bxd4 {[%clk 0:28:06.2]} 13... Nc6 {[%clk 0:26:30.4]} 14.
Bxg7 {[%clk 0:27:26.7]} 14... Kxg7 {[%clk 0:26:27.4]} 15. b3 {[%clk 0:25:44.5]}
15... b5 {[%clk 0:26:09.8]} 16. gxf5 {[%clk 0:24:03.2]} 16... exf5 {[%clk
0:25:17]} 17. exf5 {[%clk 0:23:57.9]} 17... Rxf5 {[%clk 0:25:01.2]} 18. Ng3
{[%clk 0:23:56.7]} 18... Qb6+ {[%clk 0:23:44.6]} 19. Kh2 {[%clk 0:23:27.1]}
19... Rf7 {[%clk 0:23:14.6]} 20. f5 {[%clk 0:22:20.2]} 20... Ra7 {[%clk
0:21:45.9]} 21. f6+ {[%clk 0:18:12.2]} 21... Rxf6 {[%clk 0:19:47.3]} 22. Rxf6
{[%clk 0:18:01.8]} 22... Kxf6 {[%clk 0:19:46.8]} 23. Qd6+ {[%clk 0:17:56.7]}
23... Kg7 {[%clk 0:19:34.9]} 24. Rf1 {[%clk 0:17:56]} 24... Qd8 {[%clk
0:18:55.4]} 25. Bxc6 {[%clk 0:17:50.6]} 25... Rc7 {[%clk 0:17:58.2]} 26. Nf5+
{[%clk 0:14:48.4]} 1-0

[Event "Live Chess"]
[Site "Chess.com"]
[Date "2020.12.01"]
[Round "1"]
[White "mateosh"]
[Black "Limelight2727"]
[Result "0-1"]
[WhiteElo "1687"]
[BlackElo "2199"]
[TimeControl "2100+2"]
[EndTime "19:09:31 PST"]
[Termination "Limelight2727 won by resignation"]

1. e4 {[%clk 0:35:00.4]} 1... c5 {[%clk 0:34:57.5]} 2. Nf3 {[%clk 0:34:52.3]}
2... g6 {[%clk 0:34:56.1]} 3. Bc4 {[%clk 0:34:46]} 3... Bg7 {[%clk 0:34:54.6]}
4. O-O {[%clk 0:34:40.6]} 4... d6 {[%clk 0:34:50.3]} 5. h3 {[%clk 0:34:32.4]}
5... Nc6 {[%clk 0:34:46.6]} 6. c3 {[%clk 0:34:28.3]} 6... Nf6 {[%clk 0:34:36.8]}
7. Qe2 {[%clk 0:34:25.1]} 7... O-O {[%clk 0:34:34.9]} 8. d4 {[%clk 0:33:49.5]}
8... cxd4 {[%clk 0:34:26.1]} 9. cxd4 {[%clk 0:33:45]} 9... d5 {[%clk 0:34:23.4]}
10. exd5 {[%clk 0:33:38.1]} 10... Nxd5 {[%clk 0:34:15.2]} 11. Nc3 {[%clk
0:33:32.3]} 11... Nb6 {[%clk 0:34:07.4]} 12. Be3 {[%clk 0:29:07.7]} 12... Nxc4
{[%clk 0:32:59.7]} 13. Qxc4 {[%clk 0:29:06.4]} 13... Bf5 {[%clk 0:32:48.7]} 14.
b4 {[%clk 0:28:01.4]} 14... Rc8 {[%clk 0:32:19.1]} 15. Qb5 {[%clk 0:25:52.4]}
15... Qd6 {[%clk 0:29:05.6]} 16. a3 {[%clk 0:22:41.4]} 16... a6 {[%clk 0:27:26]}
17. Qxb7 {[%clk 0:18:16]} 17... Nd8 {[%clk 0:27:25.9]} 18. Qa7 {[%clk
0:15:22.4]} 18... Rxc3 {[%clk 0:26:47.4]} 19. Rfc1 {[%clk 0:15:04.8]} 19...
Rxc1+ {[%clk 0:26:28.2]} 20. Rxc1 {[%clk 0:15:06.7]} 20... Ne6 {[%clk
0:26:14.5]} 21. d5 {[%clk 0:13:27.8]} 21... Qxd5 {[%clk 0:26:06.6]} 22. Qxa6
{[%clk 0:13:18.3]} 22... Ra8 {[%clk 0:24:46]} 23. Ba7 {[%clk 0:13:14.8]} 23...
Nf4 {[%clk 0:23:25]} 24. b5 {[%clk 0:12:49]} 24... Ne2+ {[%clk 0:23:22.1]} 25.
Kh2 {[%clk 0:12:39.4]} 25... Nxc1 {[%clk 0:23:13.1]} 0-1

[Event "Live Chess"]
[Site "Chess.com"]
[Date "2020.12.01"]
[Round "1"]
[White "ifyoustayreti"]
[Black "etvat"]
[Result "0-1"]
[WhiteElo "1654"]
[BlackElo "2120"]
[TimeControl "2100+2"]
[EndTime "19:28:25 PST"]
[Termination "etvat won by resignation"]

1. Nf3 {[%clk 0:34:46.3]} 1... Nf6 {[%clk 0:34:47.6]} 2. c4 {[%clk 0:34:43.4]}
2... e6 {[%clk 0:34:41.4]} 3. g3 {[%clk 0:34:42.3]} 3... d5 {[%clk 0:34:40.2]}
4. Bg2 {[%clk 0:34:41.5]} 4... c6 {[%clk 0:34:24.8]} 5. O-O {[%clk 0:34:40.9]}
5... Bd6 {[%clk 0:34:14.3]} 6. Nc3 {[%clk 0:34:33.1]} 6... O-O {[%clk
0:33:57.6]} 7. b3 {[%clk 0:34:33.5]} 7... Nbd7 {[%clk 0:33:55.3]} 8. Qc2 {[%clk
0:34:34.2]} 8... b6 {[%clk 0:33:53.5]} 9. Bb2 {[%clk 0:34:27.7]} 9... Bb7 {[%clk
0:33:53.3]} 10. cxd5 {[%clk 0:34:27.7]} 10... exd5 {[%clk 0:33:47]} 11. d4
{[%clk 0:34:27.9]} 11... Re8 {[%clk 0:33:45.3]} 12. a3 {[%clk 0:34:19.2]} 12...
Rc8 {[%clk 0:33:11.5]} 13. Rad1 {[%clk 0:34:19]} 13... Qe7 {[%clk 0:32:59.5]}
14. Qb1 {[%clk 0:34:09.6]} 14... Bxa3 {[%clk 0:32:38.8]} 15. Bxa3 {[%clk
0:34:08.9]} 15... Qxa3 {[%clk 0:32:39.1]} 16. e3 {[%clk 0:34:09.1]} 16... b5
{[%clk 0:32:12.1]} 17. Rd3 {[%clk 0:33:44.1]} 17... Ne4 {[%clk 0:31:41.9]} 18.
Nd2 {[%clk 0:33:25.4]} 18... Nxc3 {[%clk 0:30:35.6]} 19. Rxc3 {[%clk 0:33:24]}
19... Qd6 {[%clk 0:29:47.4]} 20. Rfc1 {[%clk 0:33:16]} 20... a5 {[%clk
0:29:32.5]} 21. Qd3 {[%clk 0:33:09.3]} 21... Ba6 {[%clk 0:28:39.7]} 22. Qf5
{[%clk 0:32:55.5]} 22... Nf6 {[%clk 0:28:05.4]} 23. Qf4 {[%clk 0:31:22]} 23...
Qxf4 {[%clk 0:27:54.8]} 24. gxf4 {[%clk 0:31:21.2]} 24... Bb7 {[%clk 0:27:18.9]}
25. f3 {[%clk 0:30:17.9]} 25... b4 {[%clk 0:27:11.3]} 26. Rc5 {[%clk 0:30:12.8]}
26... Rxe3 {[%clk 0:27:07.8]} 27. Rxa5 {[%clk 0:30:06.2]} 27... Rd3 {[%clk
0:27:00.3]} 28. Ra7 {[%clk 0:29:19.2]} 28... Rxd2 {[%clk 0:26:49.2]} 29. Rxb7
{[%clk 0:29:19.5]} 29... Rxd4 {[%clk 0:26:50.1]} 30. Ra1 {[%clk 0:29:14.1]}
30... Rxf4 {[%clk 0:26:36.4]} 31. Raa7 {[%clk 0:29:12.2]} 31... Nh5 {[%clk
0:26:18.1]} 32. Rc7 {[%clk 0:28:50.5]} 32... Re8 {[%clk 0:25:53.3]} 33. Rxc6
{[%clk 0:28:35.9]} 33... h6 {[%clk 0:25:16.5]} 34. Rc5 {[%clk 0:28:13.9]} 34...
Rd4 {[%clk 0:24:43]} 35. Ra1 {[%clk 0:27:57.3]} 35... Nf4 {[%clk 0:24:17.1]} 36.
Bf1 {[%clk 0:27:51.9]} 36... Nd3 {[%clk 0:24:05.6]} 37. Rb5 {[%clk 0:24:42.8]}
37... Ne1 {[%clk 0:23:03.4]} 38. Kf2 {[%clk 0:24:06.5]} 38... Rd2+ {[%clk
0:22:43.8]} 39. Kg3 {[%clk 0:24:05.5]} 39... Nc2 {[%clk 0:22:30]} 40. Raa5
{[%clk 0:23:28.1]} 40... Re5 {[%clk 0:21:08.5]} 41. h4 {[%clk 0:23:09.2]} 41...
g5 {[%clk 0:20:01.3]} 42. h5 {[%clk 0:22:30.7]} 42... Re1 {[%clk 0:18:44.9]} 43.
Bh3 {[%clk 0:22:22.9]} 43... Rg1+ {[%clk 0:18:06.4]} 44. Bg2 {[%clk 0:22:03.6]}
44... Rgxg2+ {[%clk 0:17:37.5]} 45. Kh3 {[%clk 0:21:53.8]} 45... Rh2+ {[%clk
0:17:38.8]} 46. Kg4 {[%clk 0:21:54.9]} 46... Rh4+ {[%clk 0:17:34.9]} 47. Kf5
{[%clk 0:21:55.8]} 47... Nd4+ {[%clk 0:17:36]} 48. Ke5 {[%clk 0:21:54]} 48...
Nxf3+ {[%clk 0:17:32.5]} 49. Kd6 {[%clk 0:21:51.1]} 49... Nd4 {[%clk 0:17:07]}
50. Rb8+ {[%clk 0:21:48.8]} 50... Kg7 {[%clk 0:17:06.7]} 51. Raa8 {[%clk
0:21:49.9]} 51... Nf5+ {[%clk 0:16:56.2]} 52. Kc5 {[%clk 0:21:42.1]} 52... Rc2+
{[%clk 0:15:58.5]} 53. Kb6 {[%clk 0:21:32.4]} 53... Rxh5 {[%clk 0:14:58.1]} 54.
Rg8+ {[%clk 0:21:23.2]} 54... Kf6 {[%clk 0:14:42.1]} 55. Kb5 {[%clk 0:21:23.6]}
55... Nd6+ {[%clk 0:12:16.7]} 56. Kb6 {[%clk 0:21:03.8]} 56... Ke6 {[%clk
0:10:52.7]} 57. Ra1 {[%clk 0:19:42.3]} 57... Rh4 {[%clk 0:10:22]} 58. Re1+
{[%clk 0:19:15.7]} 58... Re4 {[%clk 0:09:58.3]} 59. Rh1 {[%clk 0:19:12.6]} 59...
Nf5 {[%clk 0:08:15.6]} 60. Re8+ {[%clk 0:18:56.3]} 60... Kf6 {[%clk 0:08:06.7]}
61. Rd8 {[%clk 0:18:55.1]} 61... Re6+ {[%clk 0:07:47.5]} 62. Ka5 {[%clk
0:18:47.2]} 62... Rcc6 {[%clk 0:06:52.4]} 63. Rxd5 {[%clk 0:17:53.1]} 63... Ra6+
{[%clk 0:06:22.5]} 64. Kxb4 {[%clk 0:17:53.6]} 64... Rab6+ {[%clk 0:06:18.4]}
65. Kc3 {[%clk 0:17:50.7]} 65... Re3+ {[%clk 0:05:57.1]} 66. Kc2 {[%clk
0:16:50.6]} 66... Rbxb3 {[%clk 0:04:21.5]} 67. Rf1 {[%clk 0:16:19.6]} 67... Rf3
{[%clk 0:03:29.6]} 68. Ra1 {[%clk 0:16:07.5]} 68... Ne3+ {[%clk 0:03:25]} 0-1

[Event "Live Chess"]
[Site "Chess.com"]
[Date "2020.12.01"]
[Round "1"]
[White "FlightsOfFancy"]
[Black "ibalek"]
[Result "1-0"]
[WhiteElo "2075"]
[BlackElo "1652"]
[TimeControl "2100+2"]
[EndTime "19:38:32 PST"]
[Termination "FlightsOfFancy won on time"]

1. e4 {[%clk 0:34:46.5]} 1... c5 {[%clk 0:34:45.9]} 2. Nf3 {[%clk 0:34:43]} 2...
e6 {[%clk 0:34:40.2]} 3. d4 {[%clk 0:34:42.7]} 3... cxd4 {[%clk 0:34:37.5]} 4.
Nxd4 {[%clk 0:34:43.4]} 4... a6 {[%clk 0:34:27.5]} 5. Bd3 {[%clk 0:34:32.2]}
5... Qc7 {[%clk 0:34:19.3]} 6. O-O {[%clk 0:33:54.1]} 6... Nf6 {[%clk
0:34:12.5]} 7. Qe2 {[%clk 0:33:20.3]} 7... Nc6 {[%clk 0:33:44.9]} 8. Nxc6 {[%clk
0:32:50.8]} 8... bxc6 {[%clk 0:33:30]} 9. e5 {[%clk 0:32:34.8]} 9... Nd5 {[%clk
0:32:09.3]} 10. a3 {[%clk 0:29:26.2]} 10... Ne7 {[%clk 0:29:14.4]} 11. Nd2
{[%clk 0:27:45.6]} 11... Ng6 {[%clk 0:28:34.4]} 12. Nc4 {[%clk 0:27:41.3]} 12...
a5 {[%clk 0:27:16.4]} 13. Be3 {[%clk 0:26:28.7]} 13... d5 {[%clk 0:26:50.3]} 14.
exd6 {[%clk 0:26:19.8]} 14... Bxd6 {[%clk 0:26:47.3]} 15. Nxd6+ {[%clk
0:25:44.2]} 15... Qxd6 {[%clk 0:26:45.8]} 16. Rad1 {[%clk 0:25:33.9]} 16... Qc7
{[%clk 0:25:34.3]} 17. Bc5 {[%clk 0:25:15.4]} 17... Nf4 {[%clk 0:25:16]} 18. Qf3
{[%clk 0:23:44.4]} 18... Nxd3 {[%clk 0:25:12.3]} 19. Qxd3 {[%clk 0:23:18.4]}
19... Ba6 {[%clk 0:25:09.5]} 20. Qc3 {[%clk 0:22:50.7]} 20... f6 {[%clk
0:22:21.9]} 21. Rfe1 {[%clk 0:19:42.2]} 21... Kf7 {[%clk 0:19:38.4]} 22. Rd6
{[%clk 0:18:12.1]} 22... Rhe8 {[%clk 0:18:28.6]} 23. Qh3 {[%clk 0:17:13.5]}
23... Kg8 {[%clk 0:12:28]} 24. Rdxe6 {[%clk 0:16:42.2]} 24... Qf7 {[%clk
0:09:55.1]} 25. Qe3 {[%clk 0:15:01.9]} 25... Rxe6 {[%clk 0:09:33.7]} 26. Qxe6
{[%clk 0:15:00.7]} 26... Qxe6 {[%clk 0:08:28.1]} 27. Rxe6 {[%clk 0:14:59.4]}
27... Rd8 {[%clk 0:08:23.4]} 28. h3 {[%clk 0:14:02.4]} 28... Rd1+ {[%clk
0:08:14.8]} 29. Kh2 {[%clk 0:13:55.4]} 29... Rd2 {[%clk 0:07:59]} 30. Rxc6
{[%clk 0:13:43.9]} 30... Bb7 {[%clk 0:06:54.6]} 31. Rb6 {[%clk 0:13:30]} 31...
Rxc2 {[%clk 0:06:46.2]} 32. Rxb7 {[%clk 0:13:28.7]} 32... Rxc5 {[%clk 0:06:45]}
33. b4 {[%clk 0:12:51]} 33... axb4 {[%clk 0:05:44.6]} 34. axb4 {[%clk
0:12:50.4]} 34... Rc2 {[%clk 0:03:37.2]} 35. Kg3 {[%clk 0:12:47.6]} 35... h5
{[%clk 0:03:15.2]} 36. b5 {[%clk 0:12:20.8]} 36... Rb2 {[%clk 0:01:48.5]} 37. b6
{[%clk 0:12:02.4]} 37... Rb4 {[%clk 0:01:26.3]} 38. Rb8+ {[%clk 0:10:37]} 38...
Kf7 {[%clk 0:01:22.9]} 39. b7 {[%clk 0:09:40.5]} 39... Kg6 {[%clk 0:00:54.7]}
40. Kf3 {[%clk 0:09:34.8]} 40... Kf5 {[%clk 0:00:52.8]} 41. Ke3 {[%clk
0:09:03.9]} 41... g5 {[%clk 0:00:48.5]} 42. Kd3 {[%clk 0:08:30.5]} 42... Kf4
{[%clk 0:00:39.8]} 43. Kc3 {[%clk 0:08:26.3]} 43... Rb1 {[%clk 0:00:37]} 44. Kc4
{[%clk 0:08:18.6]} 44... f5 {[%clk 0:00:05.1]} 45. Kd5 {[%clk 0:08:06.4]} 45...
g4 {[%clk 0:00:02.3]} 46. h4 {[%clk 0:07:56.3]} 1-0

[Event "Live Chess"]
[Site "Chess.com"]
[Date "2020.12.01"]
[Round "1"]
[White "fiddleleaf"]
[Black "unusualkid"]
[Result "0-1"]
[WhiteElo "1574"]
[BlackElo "2063"]
[TimeControl "2100+2"]
[EndTime "19:32:49 PST"]
[Termination "unusualkid won by checkmate"]

1. d4 {[%clk 0:34:57.9]} 1... d5 {[%clk 0:34:48.1]} 2. c4 {[%clk 0:34:56.6]}
2... c6 {[%clk 0:34:47.1]} 3. Nc3 {[%clk 0:34:39.7]} 3... Nf6 {[%clk 0:34:45.5]}
4. Nf3 {[%clk 0:34:37.2]} 4... dxc4 {[%clk 0:34:38.1]} 5. e3 {[%clk 0:33:20.5]}
5... b5 {[%clk 0:33:54.7]} 6. b3 {[%clk 0:29:39.2]} 6... Nd5 {[%clk 0:32:31.9]}
7. Bd2 {[%clk 0:28:26.2]} 7... cxb3 {[%clk 0:32:14.5]} 8. Qxb3 {[%clk
0:25:33.8]} 8... e6 {[%clk 0:24:27.4]} 9. e4 {[%clk 0:20:12.1]} 9... Nxc3 {[%clk
0:23:36.9]} 10. Bxc3 {[%clk 0:19:37.1]} 10... a6 {[%clk 0:22:28]} 11. Bd3 {[%clk
0:16:11.2]} 11... c5 {[%clk 0:20:30.2]} 12. Bxb5+ {[%clk 0:11:28.9]} 12... axb5
{[%clk 0:20:28.7]} 13. dxc5 {[%clk 0:09:32]} 13... Qd3 {[%clk 0:17:40.5]} 14.
Nd2 {[%clk 0:04:01.2]} 14... Nc6 {[%clk 0:16:43.6]} 15. O-O-O {[%clk 0:03:17.4]}
15... b4 {[%clk 0:14:06.6]} 16. Nb1 {[%clk 0:02:22.7]} 16... Qxe4 {[%clk
0:12:40.3]} 17. Rhe1 {[%clk 0:02:05.4]} 17... Qf5 {[%clk 0:12:06.2]} 18. Bxb4
{[%clk 0:00:33.6]} 18... Nxb4 {[%clk 0:11:47.6]} 19. Qf3 {[%clk 0:00:04.3]}
19... Qc2# {[%clk 0:11:47]} 0-1

[Event "Live Chess"]
[Site "Chess.com"]
[Date "2020.12.01"]
[Round "1"]
[White "SunnyCountry"]
[Black "oka_ako"]
[Result "0-1"]
[WhiteElo "1193"]
[BlackElo "1980"]
[TimeControl "2100+2"]
[EndTime "19:41:14 PST"]
[Termination "oka_ako won by resignation"]

1. e4 {[%clk 0:34:58.6]} 1... c6 {[%clk 0:34:38.6]} 2. d4 {[%clk 0:34:57.2]}
2... d5 {[%clk 0:34:06.6]} 3. Nc3 {[%clk 0:34:25.6]} 3... dxe4 {[%clk
0:34:02.7]} 4. Nxe4 {[%clk 0:34:24.9]} 4... Nf6 {[%clk 0:33:53.2]} 5. Ng3 {[%clk
0:33:40.8]} 5... Bg4 {[%clk 0:32:50.5]} 6. Be2 {[%clk 0:32:04.5]} 6... Bxe2
{[%clk 0:32:45.3]} 7. N1xe2 {[%clk 0:31:58.9]} 7... e6 {[%clk 0:32:44.3]} 8. O-O
{[%clk 0:31:04.2]} 8... Nbd7 {[%clk 0:32:08.3]} 9. Bg5 {[%clk 0:30:01.2]} 9...
Qc7 {[%clk 0:31:05.1]} 10. c3 {[%clk 0:29:04.7]} 10... Bd6 {[%clk 0:30:01.1]}
11. Qd2 {[%clk 0:26:50.5]} 11... h6 {[%clk 0:26:37.1]} 12. Bf4 {[%clk
0:23:43.9]} 12... g5 {[%clk 0:26:22.1]} 13. Bxd6 {[%clk 0:23:34.8]} 13... Qxd6
{[%clk 0:26:14.6]} 14. f4 {[%clk 0:18:05.8]} 14... O-O-O {[%clk 0:21:02.8]} 15.
a4 {[%clk 0:16:59.9]} 15... Rdg8 {[%clk 0:18:21.9]} 16. f5 {[%clk 0:14:26]}
16... e5 {[%clk 0:17:49.1]} 17. Rad1 {[%clk 0:13:20.5]} 17... e4 {[%clk
0:17:01.1]} 18. c4 {[%clk 0:11:10.2]} 18... Re8 {[%clk 0:15:09.9]} 19. c5 {[%clk
0:10:36.6]} 19... Qe7 {[%clk 0:14:30.2]} 20. a5 {[%clk 0:10:12]} 20... Nd5
{[%clk 0:13:22]} 21. f6 {[%clk 0:07:34.6]} 21... N7xf6 {[%clk 0:12:12.3]} 22.
Nf5 {[%clk 0:07:21.2]} 22... Qe6 {[%clk 0:12:01.8]} 23. Nd6+ {[%clk 0:07:12.9]}
23... Kc7 {[%clk 0:11:51.2]} 24. Nxe8+ {[%clk 0:06:59.3]} 24... Rxe8 {[%clk
0:11:47.5]} 25. Ng3 {[%clk 0:06:41.2]} 25... e3 {[%clk 0:10:46.4]} 26. Qe2
{[%clk 0:06:31.2]} 26... Ne7 {[%clk 0:08:50.1]} 27. Rf3 {[%clk 0:05:58.5]} 27...
Nfd5 {[%clk 0:08:22.7]} 28. Rdf1 {[%clk 0:05:10.9]} 28... Nf4 {[%clk 0:06:33.6]}
29. Rxf4 {[%clk 0:04:59.2]} 29... gxf4 {[%clk 0:06:33.5]} 30. Rxf4 {[%clk
0:04:54.5]} 30... Nd5 {[%clk 0:06:31.9]} 31. Re4 {[%clk 0:04:34.3]} 31... Qd7
{[%clk 0:05:54.2]} 32. Rxe8 {[%clk 0:04:35.1]} 32... Qxe8 {[%clk 0:05:54]} 33.
Nf5 {[%clk 0:04:23.5]} 33... Qe4 {[%clk 0:04:05.5]} 34. Nd6 {[%clk 0:04:06.1]}
34... Qxd4 {[%clk 0:03:52.6]} 35. Nxf7 {[%clk 0:03:38.3]} 35... Nf4 {[%clk
0:03:07.2]} 36. Qe1 {[%clk 0:03:11.8]} 36... e2+ {[%clk 0:02:40.3]} 37. Kh1
{[%clk 0:03:10.6]} 37... Qd1 {[%clk 0:02:38.5]} 38. h3 {[%clk 0:02:48.9]} 38...
Qxe1+ {[%clk 0:02:33.3]} 39. Kh2 {[%clk 0:02:50.1]} 39... Qf1 {[%clk 0:02:19.7]}
0-1